bitfinex/quotes_ETHUSD_20250625
["timestamp","ask_amount","ask_price","bid_price","bid_amount"]
[1750893140801,10.95303345,2411.4,2411.0,0.2072]
[1750893141008,4.1472225,2411.3,2411.0,0.2072]
[1750893141711,0.2072,2411.2,2410.8,4.35519232]
[1750893141878,1.777,2411.1,2410.8,4.35519232]
[1750893142811,1.777,2411.1,2410.9,4.14774835]
[1750893145223,1.777,2411.1,2410.8,4.35511824]
[1750893147115,1.777,2411.1,2410.8,0.2072]
[1750893148429,1.777,2411.1,2410.8,4.35519741]
[1750893149204,1.777,2411.1,2410.8,5.28153293]
[1750893149815,1.777,2411.1,2411.0,4.14765657]
[1750893150018,1.777,2411.1,2411.0,0.7992]
[1750893150532,1.777,2411.1,2411.0,4.94685657]
[1750893155628,1.776,2411.5,2411.2,4.14724648]
[1750893155830,1.776,2411.5,2411.2,0.90941031]
[1750893156039,1.776,2411.5,2411.3,0.2072]
[1750893156200,1.776,2411.5,2411.3,4.35430175]
[1750893156405,1.776,2411.5,2411.3,0.2072]
[1750893160915,1.776,2411.5,2411.3,4.35430065]
[1750893161315,1.776,2411.5,2411.3,0.2072]
[1750893167313,5.92284284,2411.5,2411.3,0.2072]
[1750893167545,1.776,2411.5,2411.3,0.2072]
[1750893170345,1.776,2411.5,2411.4,4.91256856]
[1750893170515,1.776,2412.1,2411.5,0.7609]
[1750893170714,1.776,2412.1,2412.0,4.14593698]
[1750893174144,1.776,2412.5,2412.4,4.14513618]
[1750893174350,1.776,2412.7,2412.6,4.14482397]
[1750893174596,1.776,2412.7,2412.3,4.90885625]
[1750893174727,4.14341983,2413.5,2412.5,0.7635]
[1750893174932,2.08959697,2413.7,2412.6,18.37282504]
[1750893175134,1.776,2413.7,2412.9,0.7635]
[1750893175364,1.776,2413.7,2412.8,4.14456233]
[1750893175365,1.776,2413.7,2413.6,4.14318859]
[1750893175569,1.776,2413.7,2413.5,4.90678993]
[1750893175923,1.776,2413.7,2413.6,4.14318859]
[1750893176126,1.776,2413.7,2413.5,0.7635]
[1750893177266,1.776,2413.7,2413.5,4.90679378]
[1750893177629,1.776,2413.7,2413.6,4.14318859]
[1750893178586,10.0,2414.0,2413.6,4.14318859]
[1750893178749,1.775,2413.9,2413.5,4.90679055]
[1750893179343,14.14252238,2414.0,2413.5,4.90679055]
[1750893179554,5.91774062,2413.9,2413.5,0.7635]
[1750893180784,4.14320557,2413.6,2413.1,6.798]
[1750893180954,11.57103547,2413.7,2413.0,0.8317]
[1750893181667,11.57103547,2413.7,2413.2,4.14377956]
[1750893183561,5.91780013,2413.9,2413.3,4.14367878]
[1750893183562,4.14291178,2413.8,2413.3,4.14367878]
[1750893183766,13.34569994,2413.9,2413.4,4.14352548]
[1750893183967,4.14286294,2413.8,2413.1,4.14398746]
[1750893184269,0.2064,2413.7,2413.3,0.2064]
[1750893184943,4.34943209,2413.7,2413.3,0.2064]
[1750893185647,4.34943805,2413.7,2413.3,0.2064]
[1750893185897,4.34941726,2413.7,2413.3,0.2064]
[1750893186049,13.34567058,2413.9,2413.5,4.143243]
[1750893186050,1.775,2413.9,2413.5,4.143243]
[1750893186367,1.775,2413.9,2413.5,4.349643]
[1750893186570,1.775,2413.9,2413.6,4.14318578]
[1750893186746,1.775,2413.9,2413.7,4.14287073]
[1750893186951,1.775,2413.9,2413.8,4.1428453]
[1750893187477,1.775,2413.9,2413.7,4.34933565]
[1750893187647,1.775,2413.9,2413.7,0.2064]
[1750893189079,5.91768608,2413.9,2413.7,0.2064]
[1750893190048,1.775,2413.9,2413.7,0.2064]
[1750893190476,5.91777049,2413.9,2413.7,0.2064]
[1750893190665,4.1428453,2413.8,2413.7,0.2064]
[1750893191167,10.2064,2413.7,2412.7,0.8024]
[1750893191367,4.14370364,2413.3,2413.2,0.2064]
[1750893191886,4.14395985,2413.2,2413.0,0.2072]
[1750893192053,4.14378991,2413.3,2413.0,0.2072]
[1750893193079,7.42793688,2413.2,2412.5,0.8116]
[1750893193259,4.14404707,2413.1,2412.7,0.2072]
[1750893193863,4.35032668,2413.2,2412.7,4.3518914]
[1750893194068,11.772,2413.4,2413.0,4.14420914]
[1750893194266,1.9784,2413.4,2413.0,4.35140914]
[1750893194457,1.772,2413.4,2413.3,0.2064]
[1750893195068,1.772,2413.4,2413.3,4.35010364]
[1750893196484,1.772,2413.4,2413.3,0.2064]
[1750893197394,5.91553194,2413.4,2413.3,0.2064]
[1750893197690,1.772,2413.4,2413.3,0.2064]
[1750893202102,1.772,2413.4,2413.3,1.0184]
[1750893204395,1.772,2413.4,2413.3,5.16210364]
[1750893204801,1.772,2413.4,2413.3,1.0184]
[1750893205200,16.1214385,2413.7,2413.3,1.0184]
[1750893205399,5.13466275,2413.6,2413.3,1.0184]
[1750893205580,0.99146136,2413.5,2413.3,0.2064]
[1750893205780,0.99146136,2413.4,2413.3,0.2064]
[1750893206100,5.1349933,2413.4,2413.3,0.2064]
[1750893206297,5.1349933,2413.4,2413.1,0.2064]
[1750893206492,4.34985711,2413.5,2413.1,0.2064]
[1750893206691,0.99154785,2413.4,2413.1,0.2064]
[1750893206891,4.34985711,2413.5,2413.1,0.2064]
[1750893207201,5.13507482,2413.4,2413.1,0.2064]
[1750893207400,4.14353786,2413.4,2413.1,0.2064]
[1750893208198,4.34983971,2413.5,2413.1,0.2064]
[1750893208497,0.99158116,2413.4,2413.1,0.2064]
[1750893208802,4.34988868,2413.5,2413.1,0.2064]
[1750893208989,0.99158113,2413.4,2413.1,0.2064]
[1750893209193,4.34988868,2413.5,2413.1,0.2064]
[1750893209381,0.99159803,2413.4,2413.1,0.2064]
[1750893209581,4.34988868,2413.5,2413.1,0.2064]
[1750893209781,0.99162858,2413.4,2413.1,0.2064]
[1750893210000,4.14354169,2413.4,2413.1,0.2064]
[1750893210201,4.3498343,2413.5,2413.1,4.3504406]
[1750893210402,0.99165645,2413.4,2413.1,4.3504406]
[1750893210597,4.3498343,2413.5,2413.1,4.3504406]
[1750893210801,0.99167321,2413.4,2413.1,4.3504406]
[1750893211000,4.3498343,2413.5,2413.1,0.2064]
[1750893211205,0.99167322,2413.4,2413.1,0.2064]
[1750893211505,4.34986592,2413.5,2413.1,0.2064]
[1750893211689,0.99166676,2413.4,2413.1,0.2064]
[1750893211891,4.34986592,2413.5,2413.1,0.2064]
[1750893212205,0.99166673,2413.4,2413.1,0.2064]
[1750893212500,4.34986592,2413.5,2413.1,0.2064]
[1750893212704,0.99166127,2413.4,2413.1,0.2064]
[1750893212884,4.34986592,2413.5,2413.1,0.2064]
[1750893213085,4.14354366,2413.4,2413.1,0.2064]
[1750893215409,4.34984849,2413.5,2413.1,0.2064]
[1750893216675,4.1435556,2413.4,2413.1,0.2064]
[1750893216878,4.34986077,2413.5,2413.1,0.2064]
[1750893217611,4.14354629,2413.4,2413.1,0.2064]
[1750893217979,4.34985542,2413.5,2413.1,0.2064]
[1750893218808,15.91509085,2413.7,2413.2,0.7547]
[1750893218809,11.772,2413.7,2413.2,0.7547]
[1750893219014,0.99213977,2413.6,2413.5,4.14327155]
[1750893219182,1.772,2413.7,2413.4,4.3498595]
[1750893219506,1.772,2413.7,2412.8,4.14451218]
[1750893219507,4.14351753,2413.5,2412.8,4.14451218]
[1750893219694,4.14366832,2413.4,2413.1,0.2064]
[1750893219895,0.2064,2413.3,2412.9,0.2072]
[1750893220080,8.40687307,2413.2,2412.7,0.8209]
[1750893220276,4.14418426,2413.1,2412.8,0.2072]
[1750893220492,4.14425464,2413.0,2412.8,0.2072]
[1750893221816,4.14439056,2412.9,2412.8,0.2072]
[1750893222127,9.39177131,2413.2,2412.8,0.2072]
[1750893222128,13.53572332,2413.2,2412.8,0.2072]
[1750893222319,4.14419917,2413.1,2412.8,0.2072]
[1750893222513,4.14423462,2413.0,2412.8,0.2072]
[1750893222911,4.14439056,2412.9,2412.8,0.2072]
[1750893223616,4.14412134,2413.1,2412.8,0.2072]
[1750893223781,6.12133201,2413.2,2412.8,0.2072]
[1750893225218,6.12133201,2413.2,2412.8,4.35175581]
[1750893225384,6.12133201,2413.2,2412.8,0.2072]
[1750893226410,4.14410703,2413.1,2412.8,0.2072]
[1750893226609,4.14429018,2413.0,2412.4,0.7882]
[1750893226802,6.9982,2413.0,2412.5,0.2072]
[1750893227011,4.14464345,2412.8,2412.5,0.2072]
[1750893227321,1.9782,2412.7,2412.3,0.2072]
[1750893227485,0.2072,2412.6,2412.2,4.35278507]
[1750893227689,4.35213076,2412.6,2412.2,0.2072]
[1750893228503,0.2072,2412.6,2412.2,4.35272019]
[1750893229104,0.2072,2412.6,2412.3,4.14540573]
[1750893229721,0.2072,2412.6,2412.3,0.84981393]
[1750893230024,1.771,2412.7,2412.4,4.95185232]
[1750893230789,1.771,2412.7,2412.4,0.8067]
[1750893231007,4.14533534,2412.4,2411.9,4.14602672]
[1750893232730,5.91633861,2412.4,2411.9,4.14602672]
[1750893233243,1.771,2412.4,2412.0,4.14592573]
[1750893233439,1.771,2412.4,2412.1,0.7999]
[1750893233627,1.771,2412.4,2412.1,4.94565484]
[1750893234030,1.771,2412.4,2412.1,4.94561884]
[1750893236044,1.771,2412.4,2412.2,4.14557648]
[1750893236641,1.771,2412.4,2412.3,4.14542138]
[1750893236833,1.771,2412.4,2412.2,4.14548876]
[1750893237036,1.771,2412.4,2412.2,5.12986658]
[1750893238327,1.771,2412.6,2412.2,5.12990783]
[1750893238532,1.771,2412.6,2412.3,4.14525593]
[1750893238730,1.771,2412.6,2412.4,4.14519198]
[1750893238955,1.771,2412.6,2412.3,4.14532687]
[1750893239156,1.771,2412.6,2412.4,5.07275213]
[1750893239724,1.771,2412.6,2412.4,5.07274941]
[1750893240047,1.771,2412.6,2412.4,0.92751843]
[1750893240356,1.771,2412.6,2412.4,5.0727524]
[1750893241153,1.771,2412.6,2412.4,5.2799524]
[1750893241654,1.771,2412.6,2412.4,6.0932524]
[1750893241858,1.771,2412.6,2412.5,0.52799524]
[1750893244431,1.771,2412.6,2412.4,0.2072]
[1750893245570,1.771,2412.6,2412.4,4.35244715]
[1750893246042,1.771,2412.6,2412.5,4.14507772]
[1750893246745,1.771,2412.6,2412.4,0.2072]
[1750893247874,4.14507772,2412.5,2412.4,0.2072]
[1750893248337,1.771,2412.6,2412.4,0.2072]
[1750893248743,5.91598037,2412.6,2412.4,0.2072]
[1750893249262,5.91598037,2412.6,2412.4,0.1072]
[1750893249841,1.771,2412.6,2412.4,0.1072]
[1750893250363,5.91592369,2412.6,2412.4,0.1072]
[1750893250753,1.771,2412.6,2412.4,0.1072]
[1750893251463,1.771,2412.6,2412.4,4.25243584]
[1750893251634,1.771,2412.6,2412.4,0.53244358]
[1750893251837,1.771,2412.6,2412.4,0.1072]
[1750893252173,10.18270522,2412.6,2412.0,0.75279]
[1750893252467,4.14515242,2412.5,2412.0,4.14585852]
[1750893252763,4.14527306,2412.4,2411.9,4.14603125]
[1750893254059,4.14543109,2412.3,2411.9,4.14603125]
[1750893254368,4.14543109,2412.3,2411.8,11.73699953]
[1750893254879,4.14561096,2412.2,2411.8,11.73705092]
[1750893255075,4.14561096,2412.2,2411.9,1.58833524]
[1750893255379,4.14551698,2412.3,2411.9,1.58833524]
[1750893256769,1.771,2412.6,2411.8,11.73708025]
[1750893256980,1.771,2412.6,2412.1,4.14566543]
[1750893256981,0.99270012,2412.5,2412.1,4.14566543]
[1750893257187,5.91597872,2412.6,2412.1,4.14566543]
[1750893257458,0.99273182,2412.5,2412.1,4.14566543]
[1750893257666,1.771,2412.6,2412.3,4.14531783]
[1750893257835,0.99274262,2412.5,2412.3,4.89561783]
[1750893258036,1.77,2412.7,2412.3,4.89561783]
[1750893258238,0.99273002,2412.6,2412.3,4.89561783]
[1750893258541,1.77,2412.7,2412.3,4.89561783]
[1750893258739,0.99274922,2412.6,2412.3,1.65442804]
[1750893258938,0.99275534,2412.5,2412.1,4.90881356]
[1750893259134,0.99275534,2412.5,2412.1,0.7632]
[1750893259135,4.14509059,2412.5,2412.1,0.7632]
[1750893259371,4.14516761,2412.5,2412.1,0.7632]
[1750893259750,4.14516761,2412.5,2412.1,4.90896054]
[1750893259947,4.14499726,2412.6,2412.1,4.90896054]
[1750893260172,0.99278697,2412.5,2412.1,4.90896054]
[1750893260380,4.14499726,2412.6,2412.1,6.4934552]
[1750893260552,0.99285098,2412.5,2412.1,6.4934552]
[1750893260870,4.14499726,2412.6,2412.1,6.4934552]
[1750893261077,0.99286145,2412.5,2412.1,6.4934552]
[1750893261253,4.14499726,2412.6,2412.1,6.4934552]
[1750893261439,0.99295071,2412.5,2412.4,4.14524954]
[1750893261640,1.77,2413.4,2412.9,0.809]
[1750893261962,9.57,2413.6,2413.2,4.14383027]
[1750893262137,9.57,2413.6,2413.3,0.809]
[1750893262470,9.57,2413.6,2413.4,4.34990848]
[1750893262776,1.77,2413.6,2413.4,4.34990848]
[1750893263068,1.77,2413.6,2413.5,4.14336026]
[1750893263940,1.77,2413.6,2413.5,4.34976026]
[1750893264467,10.0,2414.0,2413.5,4.34976026]
[1750893264643,1.77,2413.9,2413.5,4.34976026]
[1750893264851,1.77,2413.9,2413.7,4.14298903]
[1750893265170,1.77,2413.9,2413.6,4.14311274]
[1750893265972,1.77,2413.9,2413.5,4.34967085]
[1750893266677,1.77,2413.9,2413.6,4.14318102]
[1750893267863,1.77,2413.9,2413.7,4.14291341]
[1750893268075,1.77,2413.9,2413.8,4.1428453]
[1750893270459,1.769,2415.0,2414.0,0.8117]
[1750893270787,1.769,2415.0,2414.6,4.14144535]
[1750893271278,11.769,2415.0,2414.6,4.14144535]
[1750893271686,15.9098107,2415.0,2414.5,4.14155298]
[1750893272794,15.9098107,2415.0,2414.4,11.75342839]
[1750893272971,4.14097684,2414.9,2414.4,11.75342839]
[1750893273571,4.14097684,2414.9,2414.4,11.75042839]
[1750893273761,15.90984324,2415.0,2414.5,4.14154276]
[1750893274775,7.8,2415.1,2414.4,7.6067]
[1750893275072,1.769,2415.5,2414.9,0.8124]
[1750893275391,1.769,2415.5,2415.4,4.14010101]
[1750893275594,0.0871748,2415.6,2415.5,4.13992962]
[1750893275901,0.0871748,2415.6,2415.5,4.94732962]
[1750893276274,0.0871748,2415.6,2415.5,11.74832962]
[1750893277560,0.0871748,2415.6,2415.5,13.33717073]
[1750893278992,0.0871748,2415.6,2415.5,0.8074]
[1750893279292,0.0871748,2415.6,2415.5,6.798]
[1750893280057,0.0871748,2415.6,2415.5,10.93792962]
[1750893280457,0.0871748,2415.6,2415.5,11.14432962]
[1750893281261,0.0871748,2415.6,2415.5,7.0044]
[1750893282981,0.0871748,2415.6,2415.5,6.9984]
[1750893283379,0.0871748,2415.6,2415.5,11.13832962]
[1750893283589,0.0871748,2415.6,2415.5,12.25216258]
[1750893283786,0.0871748,2415.6,2415.5,8.11223296]
[1750893285096,0.0871748,2415.6,2415.1,4.14053497]
[1750893285296,0.0871748,2415.6,2414.5,4.90215737]
[1750893285297,0.0871748,2415.6,2415.3,0.2064]
[1750893285504,0.0871748,2415.6,2415.4,6.788]
[1750893285699,0.0871748,2415.6,2414.8,0.7521]
[1750893285877,0.2064,2415.4,2414.9,0.2064]
[1750893286084,0.2064,2415.2,2414.8,10.93104723]
[1750893286779,0.2064,2415.2,2414.9,4.14090626]
[1750893286992,4.34652497,2415.4,2414.9,0.2064]
[1750893287468,4.34659296,2415.4,2414.9,4.3473265]
[1750893287892,4.14029375,2415.3,2414.9,0.2064]
[1750893289714,4.34655671,2415.4,2414.9,5.46100042]
[1750893290307,4.34655671,2415.4,2414.9,1.32014405]
[1750893290506,4.14030107,2415.3,2414.9,1.32014405]
[1750893291719,4.1406295,2415.1,2414.9,0.2064]
[1750893291895,4.34702761,2415.1,2414.8,6.784]
[1750893292078,0.2064,2415.1,2414.8,6.784]
[1750893292614,4.14080243,2415.0,2414.8,6.784]
[1750893293418,4.3470938,2415.1,2414.8,6.784]
[1750893293720,4.14081045,2415.0,2414.8,6.784]
[1750893295114,0.2064,2415.1,2414.8,6.784]
[1750893296118,0.2064,2415.1,2414.8,10.92508882]
[1750893296620,0.2064,2415.1,2414.8,6.784]
[1750893297729,4.34705178,2415.1,2414.8,6.784]
[1750893298012,4.34702007,2415.1,2414.8,6.784]
[1750893299285,0.2064,2415.2,2414.8,11.13143413]
[1750893299484,0.2064,2415.2,2414.8,12.7339155]
[1750893299682,4.34685194,2415.2,2414.8,8.59288137]
[1750893300098,4.1406279,2415.1,2414.8,8.59288137]
[1750893300434,4.1406279,2415.1,2414.8,6.9904]
[1750893300637,4.34694256,2415.2,2414.8,6.9904]
[1750893300925,4.34694256,2415.2,2414.8,11.13152235]
[1750893301284,4.34694256,2415.2,2414.8,6.9904]
[1750893303000,4.34694256,2415.2,2414.8,11.13152426]
[1750893303422,0.2064,2415.2,2414.8,11.13152426]
[1750893303624,5.91400128,2415.5,2414.9,0.7717]
[1750893303927,5.12916095,2415.4,2415.1,0.2064]
[1750893304109,5.1291712,2415.4,2415.1,0.2064]
[1750893304307,0.98904768,2415.3,2415.1,6.9894]
[1750893304512,4.14012352,2415.4,2415.1,6.9894]
[1750893304812,0.98940888,2415.3,2415.1,6.9894]
[1750893304991,4.14012352,2415.4,2415.1,6.9894]
[1750893305188,5.12970198,2415.3,2415.1,6.9894]
[1750893305419,0.98940869,2415.2,2415.1,6.9894]
[1750893306125,1.9804,2415.5,2415.1,8.17960488]
[1750893306326,0.98947662,2415.4,2415.1,12.32022017]
[1750893306528,0.98947662,2415.3,2415.1,12.32022017]
[1750893306845,1.9804,2415.5,2415.1,12.32022017]
[1750893306846,1.774,2415.5,2415.2,0.8176]
[1750893306995,1.774,2415.5,2415.4,4.14010101]
[1750893307194,0.0871748,2415.6,2415.5,4.13992962]
[1750893307814,0.0871748,2415.6,2415.4,7.91983643]
[1750893307815,0.0871748,2415.6,2415.4,12.05990512]
[1750893308325,0.0871748,2415.6,2415.5,4.13992962]
[1750893308544,0.0871748,2415.6,2415.4,12.05984314]
[1750893309112,0.0871748,2415.6,2415.4,7.91983643]
[1750893309310,0.0871748,2415.6,2415.5,2.03210382]
[1750893309530,0.0871748,2415.6,2415.5,6.17203344]
[1750893314145,0.0871748,2415.6,2415.4,0.2064]
[1750893314312,4.14002156,2415.5,2415.2,6.9884]
[1750893314507,4.22700187,2415.6,2415.2,6.9884]
[1750893314712,4.13994435,2415.5,2415.2,6.9884]
[1750893315137,4.22702735,2415.6,2415.2,6.9884]
[1750893315314,0.0871748,2415.6,2415.2,10.92234049]
[1750893315525,0.0871748,2415.6,2415.4,0.2064]
[1750893316815,0.0871748,2415.6,2415.4,4.34647468]
[1750893317441,0.0871748,2415.6,2415.5,10.92192962]
[1750893317740,0.0871748,2415.6,2415.5,11.12832962]
[1750893317939,0.0871748,2415.6,2415.5,12.73349053]
[1750893318448,0.0871748,2415.6,2415.5,13.51669053]
[1750893319841,0.2064,2416.3,2415.5,13.51669053]
[1750893320057,0.2064,2417.0,2416.7,4.13778885]
[1750893320353,0.2064,2417.1,2416.7,0.2064]
[1750893320513,0.2064,2417.1,2416.7,6.9914]
[1750893320940,4.34361623,2417.1,2416.7,6.9914]
[1750893321846,0.2064,2417.1,2416.7,8.85754338]
[1750893322043,4.34375291,2417.1,2416.7,0.2064]
[1750893322255,10.0,2417.2,2416.7,6.782]
[1750893322256,4.22490274,2416.8,2416.7,6.782]
[1750893322422,4.13804518,2416.6,2416.5,6.782]
[1750893322627,5.90473445,2416.8,2416.4,6.9874]
[1750893322946,4.22535208,2416.6,2416.4,6.781]
[1750893323356,4.22535208,2416.6,2416.2,0.2064]
[1750893323533,0.0872,2416.6,2416.3,6.783]
[1750893323848,0.2064,2416.7,2416.3,6.783]
[1750893324053,4.13807905,2416.6,2416.3,6.783]
[1750893324254,0.2064,2416.7,2416.3,6.783]
[1750893324436,4.13799965,2416.7,2416.3,6.783]
[1750893324618,4.34439965,2416.7,2416.3,7.76007444]
[1750893324814,0.2064,2416.7,2416.3,11.89861833]
[1750893325019,0.2064,2416.7,2416.3,7.76007444]
[1750893325221,5.99198162,2416.8,2416.4,0.2064]
[1750893325547,4.13789499,2416.7,2416.4,0.2064]
[1750893325918,5.99199474,2416.8,2416.4,6.9864]
[1750893326854,1.767,2416.8,2416.5,4.13808344]
[1750893327145,1.767,2416.8,2416.7,0.2064]
[1750893327912,1.767,2416.8,2416.5,6.781]
[1750893327913,5.90470274,2416.8,2416.5,6.781]
[1750893328118,5.90470274,2416.8,2416.5,6.9874]
[1750893328735,4.13792229,2416.7,2416.5,6.9874]
[1750893329340,4.22512229,2416.7,2416.5,6.9874]
[1750893329620,0.0872,2416.7,2416.3,4.13854536]
[1750893329823,0.0872,2416.7,2416.5,6.781]
[1750893330560,0.2064,2416.8,2416.5,6.781]
[1750893330858,1.766,2416.9,2416.6,4.13804518]
[1750893331039,11.766,2417.0,2416.7,0.2064]
[1750893331235,15.90348599,2417.0,2416.7,0.2064]
[1750893331440,4.13756494,2416.9,2416.7,0.2064]
[1750893331763,15.90343972,2417.0,2416.7,0.2064]
[1750893332326,4.13770274,2416.8,2416.7,0.2064]
[1750893332573,4.13762096,2416.9,2416.7,0.2064]
[1750893333936,5.90341397,2417.0,2416.7,0.2064]
[1750893334166,0.2064,2417.1,2416.7,4.34425871]
[1750893334342,0.2064,2417.1,2416.8,4.93067006]
[1750893334533,11.766,2417.2,2416.8,4.93067006]
[1750893334534,1.766,2417.2,2416.9,4.1374251]
[1750893334738,1.766,2417.2,2416.9,0.2064]
[1750893335472,0.0872,2417.8,2417.0,7.6174]
[1750893335632,4.13654085,2417.5,2417.0,11.7546371]
[1750893335964,4.13654085,2417.5,2417.1,1.5892015]
[1750893336164,5.90222546,2417.7,2417.2,4.13701669]
[1750893336563,1.766,2417.7,2417.3,4.13684214]
[1750893336752,4.13618913,2417.7,2417.2,4.13693458]
[1750893336956,1.766,2417.6,2417.3,4.13677041]
[1750893337151,1.766,2417.6,2417.3,5.12306106]
[1750893337360,1.766,2417.6,2417.4,4.13667557]
[1750893337868,1.766,2417.6,2417.3,0.98629065]
[1750893338370,5.9023398,2417.6,2417.1,4.13710831]
[1750893338571,5.9023398,2417.6,2417.2,4.13699126]
[1750893338572,1.766,2417.6,2417.2,4.13699126]
[1750893338773,1.766,2417.6,2417.0,7.6174]
[1750893339068,1.766,2417.6,2417.3,4.13672659]
[1750893339269,1.766,2417.6,2417.5,4.13650465]
[1750893339461,1.766,2417.6,2417.3,4.13675154]
[1750893339779,1.766,2417.6,2417.4,0.41367515]
[1750893341169,1.766,2417.6,2417.4,1.19037515]
[1750893341772,5.90243821,2417.6,2417.4,0.41367515]
[1750893341976,5.90243821,2417.6,2417.2,0.7873]
[1750893342291,0.0872,2418.0,2417.2,0.7873]
[1750893342569,1.772,2417.8,2417.4,4.1366028]
[1750893342742,1.772,2417.8,2417.5,4.13649952]
[1750893342941,10.0,2417.9,2417.6,4.13628885]
[1750893343140,1.772,2417.8,2417.6,4.13632751]
[1750893343342,1.772,2417.8,2417.1,4.13710598]
[1750893343343,0.0872,2417.7,2417.2,10.92187807]
[1750893343552,5.90808549,2417.8,2417.2,10.92187807]
[1750893343985,5.90808549,2417.8,2417.3,4.136834]
[1750893344190,4.13617119,2417.7,2417.2,10.92194694]
[1750893344488,1.772,2417.8,2417.3,4.1368402]
[1750893344796,1.772,2417.8,2417.4,5.22877711]
[1750893344957,1.772,2417.8,2417.5,0.8245]
[1750893345362,1.772,2417.8,2417.5,4.9609947]
[1750893345562,1.772,2417.8,2417.5,5.1673219]
[1750893346166,6.12559201,2418.1,2417.6,4.13633355]
[1750893346360,4.13567736,2418.0,2417.7,1.11613085]
[1750893348095,4.13584178,2417.9,2417.7,1.11613085]
[1750893348402,4.13618293,2417.7,2417.4,7.88218402]
[1750893348573,5.90833355,2417.6,2416.9,0.8063]
[1750893348778,4.13675866,2417.4,2417.2,0.2064]
[1750893348978,4.13684689,2417.3,2417.2,0.2064]
[1750893349374,4.13711945,2417.2,2416.9,6.792]
[1750893349590,4.13711945,2417.2,2417.0,0.2064]
[1750893351299,5.90923776,2417.1,2416.5,6.793]
[1750893351465,0.2064,2417.0,2416.6,4.13796035]
[1750893351667,4.34379866,2417.0,2416.7,0.2064]
[1750893352265,4.13753225,2416.9,2416.7,0.2064]
[1750893353086,4.34383356,2417.0,2416.7,0.2064]
[1750893354070,4.1375439,2416.9,2416.7,0.2064]
[1750893355175,4.13770274,2416.8,2416.7,0.2064]
[1750893355383,4.13770274,2416.8,2416.5,6.9994]
[1750893355584,4.13770274,2416.8,2416.5,0.90634]
[1750893355880,4.13770418,2416.8,2416.5,0.90634]
[1750893356071,4.1379577,2416.7,2416.5,0.2064]
[1750893356274,4.4312068,2416.9,2416.5,0.2064]
[1750893356681,4.13771567,2416.8,2416.5,0.2064]
[1750893357111,0.0872,2416.9,2416.0,0.8097]
[1750893357281,0.0872,2416.9,2416.1,0.2064]
[1750893357282,0.2064,2416.6,2416.1,0.2064]
[1750893357486,1.9784,2416.6,2416.1,4.34529937]
[1750893357804,4.13864106,2416.3,2416.1,0.2064]
[1750893358113,4.13846664,2416.4,2416.1,0.2064]
[1750893358282,0.0872,2416.5,2416.0,0.8097]
[1750893358283,4.13857864,2416.3,2416.0,0.8097]
[1750893358477,4.34486499,2416.4,2416.0,2.19149708]
[1750893358811,4.13855951,2416.3,2416.0,2.19149708]
[1750893359186,4.13874651,2416.2,2416.0,0.2064]
[1750893360419,0.2064,2416.3,2415.8,0.2064]
[1750893360702,5.91047085,2416.4,2416.0,0.2064]
[1750893361294,1.772,2416.4,2416.0,0.2064]
[1750893361480,4.13873023,2416.2,2416.0,0.2064]
[1750893361682,4.13862933,2416.3,2416.0,0.2064]
[1750893361877,4.13875615,2416.2,2416.0,0.2064]
[1750893362071,4.13865312,2416.3,2416.0,0.2064]
[1750893362336,4.13879511,2416.2,2416.0,0.2064]
[1750893362509,4.13890153,2416.1,2416.0,0.2064]
[1750893362906,5.91041847,2416.4,2416.0,0.2064]
[1750893363202,4.13864645,2416.3,2416.0,0.2064]
[1750893363581,5.91048163,2416.4,2416.0,0.2064]
[1750893363784,4.43187583,2416.5,2416.1,4.13890153]
[1750893363785,0.2064,2416.5,2416.1,4.13890153]
[1750893364006,1.772,2416.4,2416.2,4.13871256]
[1750893364776,1.772,2416.4,2416.1,0.7895]
[1750893364996,5.91039236,2416.4,2416.1,0.7895]
[1750893366410,1.772,2416.4,2416.1,4.92838781]
[1750893366586,0.2064,2416.5,2416.2,4.13868472]
[1750893368414,0.2064,2416.5,2416.3,4.13844381]
[1750893368594,1.772,2416.6,2416.4,4.13838386]
[1750893370208,1.772,2416.6,2416.5,4.13821642]
[1750893370413,1.772,2416.6,2416.5,4.96587683]
[1750893370803,1.772,2416.6,2416.5,5.74737683]
[1750893371203,7.8,2416.8,2416.6,4.13800355]
[1750893371704,10.2064,2417.0,2416.5,1.81556041]
[1750893372013,10.0,2417.0,2416.9,0.2064]
[1750893372382,1.779,2417.1,2416.9,0.2064]
[1750893373581,5.91629198,2417.1,2416.9,0.2064]
[1750893373787,4.13736036,2417.0,2416.9,0.2064]
[1750893373989,4.13736036,2417.0,2416.7,0.2064]
[1750893374721,5.91627825,2417.1,2416.7,0.2064]
[1750893375098,1.779,2417.1,2416.7,4.85685721]
[1750893376318,5.91619089,2417.1,2416.7,4.85685721]
[1750893377020,1.779,2417.1,2416.7,4.85685721]
[1750893377354,1.779,2417.1,2416.9,0.2064]
[1750893377493,1.779,2417.1,2416.9,1.0132]
[1750893378424,1.779,2417.1,2416.9,0.8068]
[1750893378614,1.779,2417.1,2417.0,0.2064]
[1750893379521,5.91618919,2417.1,2417.0,0.2064]
[1750893379724,4.13746034,2417.0,2416.6,0.8068]
[1750893379932,4.13753154,2416.9,2416.8,0.2064]
[1750893380638,4.13784298,2416.8,2416.4,6.803]
[1750893380802,4.13787898,2416.7,2416.6,0.2064]
[1750893384447,4.13779825,2416.8,2416.6,0.2064]
[1750893384850,4.13762638,2416.9,2416.6,0.2064]
[1750893385041,7.59953071,2417.0,2416.6,0.2064]
[1750893385230,0.2064,2417.0,2416.8,4.1375493]
[1750893385551,1.779,2417.1,2416.9,4.63245623]
[1750893385850,1.779,2417.1,2417.0,4.13736036]
[1750893386215,1.779,2417.1,2417.0,4.34376036]
[1750893386417,1.779,2417.1,2417.0,0.2064]
[1750893386642,4.13694541,2417.3,2417.0,0.2064]
[1750893386851,0.98886374,2417.4,2417.3,4.13684689]
[1750893387017,7.8872,2417.8,2417.1,4.96173707]